[Event "Titled Tuesday Blitz July 25 Late 2023"]
[White "Xia, Brandon"]
[Black "D`Arruda, Ricardo D."]
[WhiteFideId "30921880"]
[BlackFideId "100692"]
[WhiteElo "2357"]
[BlackElo "2479"]
[Result "1-0"]
[Round "11"]
[TimeControl "180+2"]
[Date "2023.07.25"]
[WhiteClock "0:00:43"]
[BlackClock "0:00:55"]
[Board "74"]

1. b3 {[%clk 0:02:24]}  e5 {[%clk 0:02:57]} 2. Bb2 {[%clk 0:02:25]}  Nc6 {[%clk 0:02:57]} 3. e3 {[%clk 0:02:25]}  Nf6 {[%clk 0:02:58]} 4. Bb5 {[%clk 0:02:26]}  d6 {[%clk 0:02:57]} 5. Nf3 {[%clk 0:02:25]}  Be7 {[%clk 0:02:57]} 6. d4 {[%clk 0:02:26]}  exd4 {[%clk 0:02:55]} 7. Nxd4 {[%clk 0:02:25]}  Bd7 {[%clk 0:02:55]} 8. Nxc6 {[%clk 0:02:25]}  Bxc6 {[%clk 0:02:53]} 9. Bxc6+ {[%clk 0:02:26]}  bxc6 {[%clk 0:02:54]} 10. O-O {[%clk 0:02:26]}  O-O {[%clk 0:02:54]} 11. c4 {[%clk 0:02:27]}  c5 {[%clk 0:02:54]} 12. Nc3 {[%clk 0:02:27]}  Qd7 {[%clk 0:02:53]} 13. Qf3 {[%clk 0:02:27]}  Qg4 {[%clk 0:02:43]} 14. Qxg4 {[%clk 0:02:17]}  Nxg4 {[%clk 0:02:42]} 15. Nd5 {[%clk 0:02:18]}  Bd8 {[%clk 0:02:41]} 16. h3 {[%clk 0:02:19]}  Nh6 {[%clk 0:02:40]} 17. g4 {[%clk 0:02:17]}  f6 {[%clk 0:02:39]} 18. Rfd1 {[%clk 0:02:16]}  Re8 {[%clk 0:02:37]} 19. Kg2 {[%clk 0:02:10]}  Nf7 {[%clk 0:02:37]} 20. h4 {[%clk 0:02:08]}  Ne5 {[%clk 0:02:36]} 21. Kg3 {[%clk 0:02:06]}  Nc6 {[%clk 0:02:35]} 22. a3 {[%clk 0:02:05]}  a5 {[%clk 0:02:35]} 23. Rd3 {[%clk 0:02:01]}  Rb8 {[%clk 0:02:33]} 24. Rad1 {[%clk 0:02:01]}  Ne5 {[%clk 0:02:32]} 25. Bxe5 {[%clk 0:02:01]}  fxe5 {[%clk 0:02:31]} 26. e4 {[%clk 0:02:02]}  Rb7 {[%clk 0:02:28]} 27. Rf3 {[%clk 0:01:58]}  Be7 {[%clk 0:02:24]} 28. Rdd3 {[%clk 0:01:58]}  Bf8 {[%clk 0:02:23]} 29. Rf5 {[%clk 0:01:57]}  Reb8 {[%clk 0:02:18]} 30. Rdf3 {[%clk 0:01:55]}  c6 {[%clk 0:02:13]} 31. Ne3 {[%clk 0:01:34]}  Rxb3 {[%clk 0:02:12]} 32. a4 {[%clk 0:01:33]}  Be7 {[%clk 0:02:05]} 33. Rf7 {[%clk 0:01:33]}  Re8 {[%clk 0:02:03]} 34. Rxg7+ {[%clk 0:01:29]}  Kxg7 {[%clk 0:01:56]} 35. Nf5+ {[%clk 0:01:29]}  Kg8 {[%clk 0:01:56]} 36. Rxb3 {[%clk 0:01:30]}  Bf8 {[%clk 0:01:53]} 37. Rb7 {[%clk 0:01:27]}  Rd8 {[%clk 0:01:51]} 38. f3 {[%clk 0:01:22]}  d5 {[%clk 0:01:51]} 39. cxd5 {[%clk 0:01:15]}  cxd5 {[%clk 0:01:52]} 40. exd5 {[%clk 0:01:15]}  Rxd5 {[%clk 0:01:52]} 41. Rb5 {[%clk 0:01:15]}  Rd3 {[%clk 0:01:52]} 42. Rxa5 {[%clk 0:01:14]}  e4 {[%clk 0:01:51]} 43. Ra8 {[%clk 0:01:08]}  Rxf3+ {[%clk 0:01:49]} 44. Kg2 {[%clk 0:01:08]}  c4 {[%clk 0:01:43]} 45. Nd6 {[%clk 0:01:04]}  Rf4 {[%clk 0:01:38]} 46. Kg3 {[%clk 0:01:01]}  Rf3+ {[%clk 0:01:37]} 47. Kg2 {[%clk 0:01:01]}  Rd3 {[%clk 0:01:36]} 48. Nxe4 {[%clk 0:00:58]}  Rd4 {[%clk 0:01:23]} 49. Kf3 {[%clk 0:00:54]}  Kf7 {[%clk 0:01:21]} 50. Ng5+ {[%clk 0:00:53]}  Ke7 {[%clk 0:01:19]} 51. Nxh7 {[%clk 0:00:49]}  Bh6 {[%clk 0:01:06]} 52. g5 {[%clk 0:00:49]}  Rxh4 {[%clk 0:01:06]} 53. gxh6 {[%clk 0:00:48]}  Rxh6 {[%clk 0:01:07]} 54. Ng5 {[%clk 0:00:49]}  Rc6 {[%clk 0:01:07]} 55. Ke2 {[%clk 0:00:42]}  c3 {[%clk 0:01:06]} 56. Kd1 {[%clk 0:00:43]}  Kf6 {[%clk 0:01:05]} 57. Nf3 {[%clk 0:00:43]}  Kf5 {[%clk 0:00:55]} 58. Nd4+ {[%clk 0:00:43]} 1-0


[Site "https://www.chess.com"]

[Event "Titled Tuesday Blitz July 25 Late 2023"]
[White "MateoReyes"]
[Black "Korpics, Zsolt"]
[BlackFideId "705241"]
[WhiteElo "2466"]
[BlackElo "2352"]
[Result "1-0"]
[Round "11"]
[TimeControl "180+2"]
[Date "2023.07.25"]
[WhiteClock "0:00:02"]
[BlackClock "0:00:03"]
[Board "75"]

1. Nf3 {[%clk 0:03:00]}  Nf6 {[%clk 0:02:59]} 2. d4 {[%clk 0:02:56]}  e6 {[%clk 0:02:59]} 3. c4 {[%clk 0:02:56]}  b6 {[%clk 0:02:59]} 4. g3 {[%clk 0:02:55]}  Ba6 {[%clk 0:02:59]} 5. Nbd2 {[%clk 0:02:53]}  Bb4 {[%clk 0:02:58]} 6. Qc2 {[%clk 0:02:52]}  O-O {[%clk 0:02:47]} 7. Bg2 {[%clk 0:02:51]}  Bb7 {[%clk 0:02:44]} 8. O-O {[%clk 0:02:51]}  d6 {[%clk 0:02:38]} 9. Nb3 {[%clk 0:02:48]}  d5 {[%clk 0:02:32]} 10. c5 {[%clk 0:02:45]}  bxc5 {[%clk 0:02:32]} 11. dxc5 {[%clk 0:02:45]}  c6 {[%clk 0:02:29]} 12. a3 {[%clk 0:02:45]}  Ba5 {[%clk 0:02:30]} 13. Nxa5 {[%clk 0:02:44]}  Qxa5 {[%clk 0:02:31]} 14. b4 {[%clk 0:02:44]}  Qd8 {[%clk 0:02:26]} 15. Bb2 {[%clk 0:02:43]}  Nbd7 {[%clk 0:02:22]} 16. Rad1 {[%clk 0:02:35]}  Qc7 {[%clk 0:02:21]} 17. Rfe1 {[%clk 0:02:34]}  e5 {[%clk 0:02:19]} 18. e3 {[%clk 0:02:30]}  a5 {[%clk 0:02:14]} 19. Nh4 {[%clk 0:02:29]}  g6 {[%clk 0:02:11]} 20. f4 {[%clk 0:02:27]}  axb4 {[%clk 0:02:06]} 21. axb4 {[%clk 0:02:27]}  Ra2 {[%clk 0:02:06]} 22. Qb1 {[%clk 0:02:23]}  Ra4 {[%clk 0:01:49]} 23. Bc3 {[%clk 0:02:16]}  e4 {[%clk 0:01:43]} 24. Qb2 {[%clk 0:02:11]}  Qd8 {[%clk 0:01:40]} 25. Bh3 {[%clk 0:02:06]}  Qe7 {[%clk 0:01:37]} 26. f5 {[%clk 0:01:47]}  Ba6 {[%clk 0:01:23]} 27. Ng2 {[%clk 0:01:38]}  g5 {[%clk 0:01:19]} 28. g4 {[%clk 0:01:31]}  Bc4 {[%clk 0:01:16]} 29. Ra1 {[%clk 0:01:30]}  Rfa8 {[%clk 0:01:16]} 30. Rxa4 {[%clk 0:01:27]}  Rxa4 {[%clk 0:01:17]} 31. Ra1 {[%clk 0:01:27]}  Rxa1+ {[%clk 0:01:02]} 32. Qxa1 {[%clk 0:01:27]}  Ne8 {[%clk 0:01:02]} 33. Ne1 {[%clk 0:01:24]}  f6 {[%clk 0:01:01]} 34. Nc2 {[%clk 0:01:21]}  Nc7 {[%clk 0:00:59]} 35. Nd4 {[%clk 0:01:19]}  Ne5 {[%clk 0:00:58]} 36. Qa7 {[%clk 0:01:10]}  Kf7 {[%clk 0:00:47]} 37. Qb8 {[%clk 0:01:07]}  Ne8 {[%clk 0:00:22]} 38. Ne6 {[%clk 0:01:04]}  Nf3+ {[%clk 0:00:22]} 39. Kg2 {[%clk 0:01:00]}  Ng7 {[%clk 0:00:18]} 40. Nd8+ {[%clk 0:00:52]}  Kg8 {[%clk 0:00:12]} 41. Nxc6+ {[%clk 0:00:51]}  Qf8 {[%clk 0:00:13]} 42. Qxf8+ {[%clk 0:00:43]}  Kxf8 {[%clk 0:00:14]} 43. Bxf6 {[%clk 0:00:39]}  Ne8 {[%clk 0:00:13]} 44. Bc3 {[%clk 0:00:37]}  Nc7 {[%clk 0:00:12]} 45. Ne5 {[%clk 0:00:24]}  Nb5 {[%clk 0:00:11]} 46. Ba1 {[%clk 0:00:19]}  Ba2 {[%clk 0:00:05]} 47. c6 {[%clk 0:00:19]}  Ke7 {[%clk 0:00:04]} 48. Kg3 {[%clk 0:00:15]}  Nd2 {[%clk 0:00:03]} 49. Bg2 {[%clk 0:00:11]}  Nc4 {[%clk 0:00:03]} 50. Nxc4 {[%clk 0:00:09]}  Bxc4 {[%clk 0:00:04]} 51. Be5 {[%clk 0:00:06]}  Na7 {[%clk 0:00:04]} 52. f6+ {[%clk 0:00:06]}  Kf7 {[%clk 0:00:04]} 53. c7 {[%clk 0:00:06]}  Nc8 {[%clk 0:00:05]} 54. Kf2 {[%clk 0:00:06]}  Nb6 {[%clk 0:00:05]} 55. Bf1 {[%clk 0:00:06]}  Bxf1 {[%clk 0:00:05]} 56. Kxf1 {[%clk 0:00:06]}  Nc8 {[%clk 0:00:05]} 57. Ke2 {[%clk 0:00:06]}  Ke6 {[%clk 0:00:06]} 58. Kd2 {[%clk 0:00:05]}  Nb6 {[%clk 0:00:02]} 59. Kc3 {[%clk 0:00:05]}  h5 {[%clk 0:00:02]} 60. gxh5 {[%clk 0:00:03]}  g4 {[%clk 0:00:01]} 61. h6 {[%clk 0:00:03]}  Kf7 {[%clk 0:00:01]} 62. h7 {[%clk 0:00:02]}  Ke6 {[%clk 0:00:02]} 63. h8=Q {[%clk 0:00:02]}  Kxe5 {[%clk 0:00:03]} 64. f7+ {[%clk 0:00:02]}  Kf5 {[%clk 0:00:02]} 65. f8=Q+ {[%clk 0:00:02]}  Kg5 {[%clk 0:00:03]} 66. Qhh6# {[%clk 0:00:02]} 1-0


[Site "https://www.chess.com"]

[Event "Titled Tuesday Blitz July 25 Late 2023"]
[White "arturdailima"]
[Black "ExchangeAB"]
[WhiteElo "2342"]
[BlackElo "2449"]
[Result "0-1"]
[Round "11"]
[TimeControl "180+2"]
[Date "2023.07.25"]
[WhiteClock "0:00:30"]
[BlackClock "0:00:53"]
[Board "77"]

1. e4 {[%clk 0:02:30]}  c6 {[%clk 0:02:59]} 2. d4 {[%clk 0:02:30]}  d5 {[%clk 0:03:00]} 3. exd5 {[%clk 0:02:31]}  cxd5 {[%clk 0:03:00]} 4. c4 {[%clk 0:02:31]}  Nf6 {[%clk 0:03:00]} 5. Nc3 {[%clk 0:02:31]}  e6 {[%clk 0:03:01]} 6. Bg5 {[%clk 0:02:32]}  Qa5 {[%clk 0:02:44]} 7. Bxf6 {[%clk 0:02:29]}  gxf6 {[%clk 0:02:42]} 8. cxd5 {[%clk 0:02:29]}  Bb4 {[%clk 0:02:39]} 9. Qb3 {[%clk 0:02:19]}  O-O {[%clk 0:02:30]} 10. Nf3 {[%clk 0:02:12]}  exd5 {[%clk 0:02:27]} 11. Be2 {[%clk 0:02:05]}  Re8 {[%clk 0:02:25]} 12. a3 {[%clk 0:01:59]}  Bxc3+ {[%clk 0:02:14]} 13. Qxc3 {[%clk 0:01:56]}  Qxc3+ {[%clk 0:02:12]} 14. bxc3 {[%clk 0:01:56]}  Nc6 {[%clk 0:02:12]} 15. Kd2 {[%clk 0:01:55]}  Na5 {[%clk 0:02:07]} 16. Rab1 {[%clk 0:01:55]}  b6 {[%clk 0:02:06]} 17. Rhe1 {[%clk 0:01:52]}  Bf5 {[%clk 0:02:05]} 18. Rb5 {[%clk 0:01:46]}  Rad8 {[%clk 0:01:53]} 19. Nh4 {[%clk 0:01:42]}  Bg6 {[%clk 0:01:48]} 20. f4 {[%clk 0:01:38]}  Be4 {[%clk 0:01:47]} 21. g3 {[%clk 0:01:30]}  f5 {[%clk 0:01:44]} 22. Rb2 {[%clk 0:01:18]}  Re7 {[%clk 0:01:42]} 23. Bf1 {[%clk 0:01:15]}  Rc7 {[%clk 0:01:40]} 24. Rc1 {[%clk 0:01:10]}  Rdc8 {[%clk 0:01:39]} 25. Rb4 {[%clk 0:01:08]}  Nc4+ {[%clk 0:01:32]} 26. Bxc4 {[%clk 0:01:08]}  Rxc4 {[%clk 0:01:33]} 27. h3 {[%clk 0:01:00]}  R8c6 {[%clk 0:01:21]} 28. g4 {[%clk 0:00:55]}  fxg4 {[%clk 0:01:21]} 29. hxg4 {[%clk 0:00:56]}  a5 {[%clk 0:01:13]} 30. Rb5 {[%clk 0:00:52]}  Ra4 {[%clk 0:01:12]} 31. Ra1 {[%clk 0:00:51]}  Kg7 {[%clk 0:01:01]} 32. Ra2 {[%clk 0:00:49]}  Rac4 {[%clk 0:00:59]} 33. Rb3 {[%clk 0:00:36]}  a4 {[%clk 0:00:59]} 34. Rb4 {[%clk 0:00:37]}  Rxc3 {[%clk 0:00:58]} 35. Rxa4 {[%clk 0:00:36]}  Rh3 {[%clk 0:00:53]} 36. Nf5+ {[%clk 0:00:34]}  Bxf5 {[%clk 0:00:53]} 37. gxf5 {[%clk 0:00:30]}  Rh2+ {[%clk 0:00:53]} 0-1


[Site "https://www.chess.com"]

[Event "Titled Tuesday Blitz July 25 Late 2023"]
[White "SergioMoralesG"]
[Black "AndresDelgado77"]
[WhiteElo "2444"]
[BlackElo "2338"]
[Result "0-1"]
[Round "11"]
[TimeControl "180+2"]
[Date "2023.07.25"]
[WhiteClock "0:00:04"]
[BlackClock "0:00:05"]
[Board "78"]

1. d4 {[%clk 0:03:00]}  Nf6 {[%clk 0:02:48]} 2. c4 {[%clk 0:02:59]}  e5 {[%clk 0:02:45]} 3. dxe5 {[%clk 0:02:58]}  Ng4 {[%clk 0:02:45]} 4. Bf4 {[%clk 0:02:59]}  g5 {[%clk 0:02:45]} 5. Bg3 {[%clk 0:02:58]}  Bg7 {[%clk 0:02:45]} 6. Nf3 {[%clk 0:02:51]}  Nc6 {[%clk 0:02:45]} 7. h4 {[%clk 0:02:47]}  Ngxe5 {[%clk 0:02:43]} 8. Nxg5 {[%clk 0:02:32]}  Nxc4 {[%clk 0:02:43]} 9. Qd5 {[%clk 0:02:08]}  Qe7 {[%clk 0:02:38]} 10. Qxc4 {[%clk 0:02:04]}  Bxb2 {[%clk 0:02:36]} 11. Nd2 {[%clk 0:01:52]}  Bxa1 {[%clk 0:02:35]} 12. e3 {[%clk 0:01:48]}  h6 {[%clk 0:02:24]} 13. Ngf3 {[%clk 0:01:34]}  d6 {[%clk 0:02:17]} 14. Qb3 {[%clk 0:01:19]}  O-O {[%clk 0:01:50]} 15. Bd3 {[%clk 0:01:10]}  Be6 {[%clk 0:01:43]} 16. Qxb7 {[%clk 0:00:54]}  Bd5 {[%clk 0:01:41]} 17. Qb1 {[%clk 0:00:52]}  Bg7 {[%clk 0:01:39]} 18. O-O {[%clk 0:00:48]}  Rab8 {[%clk 0:01:39]} 19. Qd1 {[%clk 0:00:46]}  Nb4 {[%clk 0:01:33]} 20. Bb1 {[%clk 0:00:30]}  Nxa2 {[%clk 0:01:17]} 21. Nd4 {[%clk 0:00:20]}  Nc3 {[%clk 0:01:10]} 22. Qg4 {[%clk 0:00:20]}  Nxb1 {[%clk 0:01:01]} 23. Nxb1 {[%clk 0:00:19]}  Qe4 {[%clk 0:00:55]} 24. Bf4 {[%clk 0:00:17]}  Rxb1 {[%clk 0:00:31]} 25. Rxb1 {[%clk 0:00:16]}  Qxb1+ {[%clk 0:00:29]} 26. Kh2 {[%clk 0:00:17]}  Qg6 {[%clk 0:00:21]} 27. Qh3 {[%clk 0:00:17]}  Be5 {[%clk 0:00:19]} 28. Nf5 {[%clk 0:00:14]}  Kh7 {[%clk 0:00:16]} 29. g4 {[%clk 0:00:13]}  Bxf4+ {[%clk 0:00:13]} 30. exf4 {[%clk 0:00:13]}  Be6 {[%clk 0:00:10]} 31. Ne3 {[%clk 0:00:11]}  Qe4 {[%clk 0:00:10]} 32. f5 {[%clk 0:00:11]}  Bd5 {[%clk 0:00:10]} 33. Qf1 {[%clk 0:00:10]}  Qf4+ {[%clk 0:00:10]} 34. Kh3 {[%clk 0:00:09]}  Qf3+ {[%clk 0:00:10]} 35. Kh2 {[%clk 0:00:10]}  Qf4+ {[%clk 0:00:10]} 36. Kh3 {[%clk 0:00:09]}  Be4 {[%clk 0:00:10]} 37. Qd1 {[%clk 0:00:05]}  Rb8 {[%clk 0:00:07]} 38. Qc1 {[%clk 0:00:02]}  Rb1 {[%clk 0:00:04]} 39. Qxb1 {[%clk 0:00:02]}  Bxb1 {[%clk 0:00:04]} 40. Nd5 {[%clk 0:00:02]}  Qf3+ {[%clk 0:00:04]} 41. Kh2 {[%clk 0:00:03]}  Qxd5 {[%clk 0:00:04]} 42. g5 {[%clk 0:00:03]}  Qf3 {[%clk 0:00:04]} 43. g6+ {[%clk 0:00:03]}  fxg6 {[%clk 0:00:04]} 44. fxg6+ {[%clk 0:00:04]}  Kxg6 {[%clk 0:00:05]} 45. h5+ {[%clk 0:00:05]}  Kg5 {[%clk 0:00:05]} 46. Kg1 {[%clk 0:00:05]}  Bd3 {[%clk 0:00:05]} 47. Kh2 {[%clk 0:00:05]}  Be4 {[%clk 0:00:05]} 48. Kg1 {[%clk 0:00:04]}  Qg2# {[%clk 0:00:05]} 0-1


[Site "https://www.chess.com"]

[Event "Titled Tuesday Blitz July 25 Late 2023"]
[White "Golubev, Mikhail"]
[Black "Georg, Heinz"]
[WhiteFideId "14100983"]
[BlackFideId "4607295"]
[WhiteElo "2523"]
[BlackElo "2288"]
[Result "0-1"]
[Round "11"]
[TimeControl "180+2"]
[Date "2023.07.25"]
[WhiteClock "0:00:00"]
[BlackClock "0:01:08"]
[Board "80"]

1. e4 {[%clk 0:03:00]}  c5 {[%clk 0:02:59]} 2. Nf3 {[%clk 0:03:00]}  Nc6 {[%clk 0:02:58]} 3. Nc3 {[%clk 0:02:59]}  d6 {[%clk 0:02:48]} 4. d4 {[%clk 0:02:58]}  cxd4 {[%clk 0:02:48]} 5. Nxd4 {[%clk 0:02:59]}  e5 {[%clk 0:02:49]} 6. Nf5 {[%clk 0:02:56]}  Bxf5 {[%clk 0:02:44]} 7. exf5 {[%clk 0:02:56]}  Nf6 {[%clk 0:02:44]} 8. Bc4 {[%clk 0:02:54]}  Nd4 {[%clk 0:02:27]} 9. Bg5 {[%clk 0:02:29]}  Be7 {[%clk 0:02:23]} 10. Bxf6 {[%clk 0:02:22]}  Bxf6 {[%clk 0:02:20]} 11. O-O {[%clk 0:02:14]}  Nxf5 {[%clk 0:02:19]} 12. Qf3 {[%clk 0:01:24]}  Nd4 {[%clk 0:02:14]} 13. Qxb7 {[%clk 0:01:24]}  O-O {[%clk 0:02:13]} 14. Bd3 {[%clk 0:01:10]}  Rb8 {[%clk 0:01:59]} 15. Qe4 {[%clk 0:01:09]}  g6 {[%clk 0:02:00]} 16. Rab1 {[%clk 0:00:41]}  Bg7 {[%clk 0:01:58]} 17. Qd5 {[%clk 0:00:29]}  Kh8 {[%clk 0:01:57]} 18. Ne4 {[%clk 0:00:25]}  Rb6 {[%clk 0:01:49]} 19. c3 {[%clk 0:00:25]}  Ne6 {[%clk 0:01:46]} 20. g3 {[%clk 0:00:15]}  f5 {[%clk 0:01:29]} 21. Nd2 {[%clk 0:00:04]}  Nc7 {[%clk 0:01:28]} 22. Qa5 {[%clk 0:00:03]}  Qb8 {[%clk 0:01:21]} 23. Nb3 {[%clk 0:00:02]}  d5 {[%clk 0:01:13]} 24. Be2 {[%clk 0:00:00]}  f4 {[%clk 0:01:08]} 0-1


[Site "https://www.chess.com"]

[Event "Titled Tuesday Blitz July 25 Late 2023"]
[White "Estrada Nieto, Julian"]
[Black "disciplinedbrat"]
[WhiteFideId "5101018"]
[WhiteElo "2456"]
[BlackElo "2277"]
[Result "0-1"]
[Round "11"]
[TimeControl "180+2"]
[Date "2023.07.25"]
[WhiteClock "0:00:06"]
[BlackClock "0:00:13"]
[Board "82"]

1. e4 {[%clk 0:03:00]}  a6 {[%clk 0:02:58]} 2. d4 {[%clk 0:02:58]}  b6 {[%clk 0:02:56]} 3. Nf3 {[%clk 0:02:58]}  Bb7 {[%clk 0:02:57]} 4. Bd3 {[%clk 0:02:59]}  g6 {[%clk 0:02:58]} 5. O-O {[%clk 0:02:59]}  Bg7 {[%clk 0:02:58]} 6. c3 {[%clk 0:02:59]}  h6 {[%clk 0:02:59]} 7. Qe2 {[%clk 0:02:59]}  e6 {[%clk 0:03:00]} 8. Rd1 {[%clk 0:02:54]}  Ne7 {[%clk 0:03:00]} 9. Nbd2 {[%clk 0:02:54]}  d6 {[%clk 0:03:00]} 10. Nf1 {[%clk 0:02:54]}  Nd7 {[%clk 0:03:01]} 11. Ng3 {[%clk 0:02:54]}  e5 {[%clk 0:02:55]} 12. h4 {[%clk 0:02:51]}  c5 {[%clk 0:02:47]} 13. dxe5 {[%clk 0:02:46]}  dxe5 {[%clk 0:02:46]} 14. h5 {[%clk 0:02:46]}  Qc7 {[%clk 0:02:45]} 15. Bc4 {[%clk 0:02:42]}  b5 {[%clk 0:02:36]} 16. Bd5 {[%clk 0:02:34]}  O-O-O {[%clk 0:02:20]} 17. Bxb7+ {[%clk 0:02:32]}  Qxb7 {[%clk 0:02:20]} 18. a4 {[%clk 0:02:25]}  c4 {[%clk 0:02:14]} 19. axb5 {[%clk 0:02:24]}  axb5 {[%clk 0:02:14]} 20. Be3 {[%clk 0:02:24]}  Nb6 {[%clk 0:02:09]} 21. Bc5 {[%clk 0:02:11]}  Na4 {[%clk 0:02:06]} 22. Bxe7 {[%clk 0:02:00]}  Qxe7 {[%clk 0:02:01]} 23. Rxd8+ {[%clk 0:01:45]}  Rxd8 {[%clk 0:02:01]} 24. hxg6 {[%clk 0:01:46]}  fxg6 {[%clk 0:02:00]} 25. Rxa4 {[%clk 0:01:47]}  bxa4 {[%clk 0:01:51]} 26. Qxc4+ {[%clk 0:01:47]}  Kb8 {[%clk 0:01:46]} 27. Qxa4 {[%clk 0:01:36]}  Qd7 {[%clk 0:01:43]} 28. Qb4+ {[%clk 0:01:33]}  Qb7 {[%clk 0:01:43]} 29. Qa5 {[%clk 0:01:23]}  Rd1+ {[%clk 0:01:40]} 30. Kh2 {[%clk 0:01:22]}  Qxb2 {[%clk 0:01:40]} 31. Nxe5 {[%clk 0:01:17]}  Qxf2 {[%clk 0:01:11]} 32. Qb4+ {[%clk 0:00:49]}  Ka8 {[%clk 0:00:39]} 33. Qa4+ {[%clk 0:00:46]}  Kb8 {[%clk 0:00:38]} 34. Qb4+ {[%clk 0:00:37]}  Kc8 {[%clk 0:00:27]} 35. Qc4+ {[%clk 0:00:31]}  Kb7 {[%clk 0:00:23]} 36. Qb3+ {[%clk 0:00:20]}  Ka6 {[%clk 0:00:17]} 37. Qxd1 {[%clk 0:00:21]}  Bxe5 {[%clk 0:00:17]} 38. Qf3 {[%clk 0:00:20]}  Qxf3 {[%clk 0:00:13]} 39. gxf3 {[%clk 0:00:19]}  Bxc3 {[%clk 0:00:13]} 40. Kh3 {[%clk 0:00:19]}  Kb6 {[%clk 0:00:12]} 41. f4 {[%clk 0:00:18]}  Kc6 {[%clk 0:00:12]} 42. f5 {[%clk 0:00:17]}  g5 {[%clk 0:00:13]} 43. Kg4 {[%clk 0:00:17]}  Kd6 {[%clk 0:00:12]} 44. Nh5 {[%clk 0:00:14]}  Ke5 {[%clk 0:00:11]} 45. f6 {[%clk 0:00:13]}  Kxe4 {[%clk 0:00:11]} 46. f7 {[%clk 0:00:13]}  Bb4 {[%clk 0:00:11]} 47. Nf6+ {[%clk 0:00:11]}  Ke5 {[%clk 0:00:12]} 48. Nd7+ {[%clk 0:00:11]}  Ke6 {[%clk 0:00:11]} 49. f8=Q {[%clk 0:00:11]}  Bxf8 {[%clk 0:00:12]} 50. Nxf8+ {[%clk 0:00:12]}  Kf7 {[%clk 0:00:13]} 51. Kh5 {[%clk 0:00:12]}  Kxf8 {[%clk 0:00:12]} 52. Kxh6 {[%clk 0:00:06]}  g4 {[%clk 0:00:13]} 0-1


[Site "https://www.chess.com"]

[Event "Titled Tuesday Blitz July 25 Late 2023"]
[White "Haitin, Ilja"]
[Black "Cardozo Munar, Carlos Eduardo"]
[WhiteFideId "4501764"]
[BlackFideId "4409477"]
[WhiteElo "2373"]
[BlackElo "2266"]
[Result "1-0"]
[Round "11"]
[TimeControl "180+2"]
[Date "2023.07.25"]
[WhiteClock "0:00:06"]
[BlackClock "0:01:08"]
[Board "87"]

1. Nf3 {[%clk 0:02:51]}  Nf6 {[%clk 0:02:59]} 2. b3 {[%clk 0:02:50]}  d5 {[%clk 0:03:00]} 3. Bb2 {[%clk 0:02:51]}  e6 {[%clk 0:03:00]} 4. e3 {[%clk 0:02:44]}  c5 {[%clk 0:03:01]} 5. d4 {[%clk 0:02:37]}  Nc6 {[%clk 0:03:01]} 6. Nbd2 {[%clk 0:02:34]}  b6 {[%clk 0:02:59]} 7. Bd3 {[%clk 0:02:32]}  Be7 {[%clk 0:02:59]} 8. a3 {[%clk 0:02:32]}  h6 {[%clk 0:02:58]} 9. O-O {[%clk 0:02:30]}  O-O {[%clk 0:02:58]} 10. Ne5 {[%clk 0:02:30]}  Nxe5 {[%clk 0:02:58]} 11. dxe5 {[%clk 0:02:30]}  Nd7 {[%clk 0:02:58]} 12. f3 {[%clk 0:02:30]}  f6 {[%clk 0:02:57]} 13. exf6 {[%clk 0:02:27]}  Bxf6 {[%clk 0:02:57]} 14. Bxf6 {[%clk 0:02:26]}  Qxf6 {[%clk 0:02:58]} 15. e4 {[%clk 0:02:25]}  Bb7 {[%clk 0:02:58]} 16. Qe2 {[%clk 0:02:24]}  Ne5 {[%clk 0:02:58]} 17. Rae1 {[%clk 0:02:23]}  Rae8 {[%clk 0:02:58]} 18. f4 {[%clk 0:02:20]}  Nxd3 {[%clk 0:02:54]} 19. cxd3 {[%clk 0:02:21]}  dxe4 {[%clk 0:02:54]} 20. dxe4 {[%clk 0:02:20]}  e5 {[%clk 0:02:54]} 21. f5 {[%clk 0:02:17]}  Rd8 {[%clk 0:02:54]} 22. Nf3 {[%clk 0:02:11]}  Rd7 {[%clk 0:02:53]} 23. Rd1 {[%clk 0:02:02]}  Rfd8 {[%clk 0:02:53]} 24. Rxd7 {[%clk 0:02:00]}  Rxd7 {[%clk 0:02:54]} 25. h3 {[%clk 0:01:55]}  Qd8 {[%clk 0:02:33]} 26. Nxe5 {[%clk 0:01:51]}  Re7 {[%clk 0:02:33]} 27. Qc4+ {[%clk 0:01:48]}  Kh7 {[%clk 0:02:31]} 28. Ng6 {[%clk 0:01:14]}  Rxe4 {[%clk 0:02:31]} 29. Qf7 {[%clk 0:01:13]}  Re8 {[%clk 0:01:52]} 30. Qxb7 {[%clk 0:01:10]}  Qd4+ {[%clk 0:01:47]} 31. Kh1 {[%clk 0:01:08]}  Qd3 {[%clk 0:01:47]} 32. Qf3 {[%clk 0:01:06]}  Re3 {[%clk 0:01:46]} 33. Qf2 {[%clk 0:01:01]}  Qxb3 {[%clk 0:01:45]} 34. f6 {[%clk 0:00:54]}  gxf6 {[%clk 0:01:39]} 35. Qxf6 {[%clk 0:00:52]}  Rxh3+ {[%clk 0:01:38]} 36. Kg1 {[%clk 0:00:32]}  Rg3 {[%clk 0:01:17]} 37. Qh8+ {[%clk 0:00:06]}  Kxg6 {[%clk 0:01:17]} 38. Rf6+ {[%clk 0:00:05]}  Kg5 {[%clk 0:01:08]} 39. Qxh6+ {[%clk 0:00:06]}  Kg4 {[%clk 0:01:08]} 40. Rf4# {[%clk 0:00:06]} 1-0


[Site "https://www.chess.com"]

[Event "Titled Tuesday Blitz July 25 Late 2023"]
[White "Zhou, Qiyu"]
[Black "Tarnowska, Aleksandra"]
[WhiteFideId "505161"]
[BlackFideId "1180967"]
[WhiteElo "2335"]
[BlackElo "2134"]
[Result "1-0"]
[Round "11"]
[TimeControl "180+2"]
[Date "2023.07.25"]
[WhiteClock "0:00:47"]
[BlackClock "0:00:15"]
[Board "91"]

1. e4 {[%clk 0:03:00]}  c5 {[%clk 0:02:58]} 2. Nf3 {[%clk 0:02:58]}  e6 {[%clk 0:02:58]} 3. d4 {[%clk 0:02:56]}  cxd4 {[%clk 0:02:58]} 4. Nxd4 {[%clk 0:02:55]}  a6 {[%clk 0:02:58]} 5. c4 {[%clk 0:02:52]}  Nf6 {[%clk 0:02:58]} 6. Nc3 {[%clk 0:02:51]}  Bb4 {[%clk 0:02:58]} 7. Bd3 {[%clk 0:02:51]}  Qc7 {[%clk 0:02:58]} 8. O-O {[%clk 0:02:49]}  Nc6 {[%clk 0:02:57]} 9. Be3 {[%clk 0:02:48]}  Ne5 {[%clk 0:02:51]} 10. Rc1 {[%clk 0:02:42]}  Nfg4 {[%clk 0:02:45]} 11. Bf4 {[%clk 0:02:23]}  Bd6 {[%clk 0:02:21]} 12. Bg3 {[%clk 0:02:17]}  h5 {[%clk 0:01:53]} 13. Nf3 {[%clk 0:01:28]}  Nxf3+ {[%clk 0:01:21]} 14. Qxf3 {[%clk 0:01:27]}  Nxh2 {[%clk 0:01:21]} 15. Bxh2 {[%clk 0:01:25]}  Bxh2+ {[%clk 0:01:21]} 16. Kh1 {[%clk 0:01:25]}  Be5 {[%clk 0:01:13]} 17. c5 {[%clk 0:01:08]}  g5 {[%clk 0:01:04]} 18. Na4 {[%clk 0:00:57]}  g4 {[%clk 0:00:41]} 19. Qe3 {[%clk 0:00:56]}  Bf4 {[%clk 0:00:38]} 20. Qd4 {[%clk 0:00:53]}  e5 {[%clk 0:00:38]} 21. Qd5 {[%clk 0:00:48]}  Bxc1 {[%clk 0:00:32]} 22. Rxc1 {[%clk 0:00:49]}  Qc6 {[%clk 0:00:32]} 23. Qxe5+ {[%clk 0:00:49]}  Kd8 {[%clk 0:00:20]} 24. Qxh8+ {[%clk 0:00:48]}  Kc7 {[%clk 0:00:20]} 25. Nb6 {[%clk 0:00:48]}  Rb8 {[%clk 0:00:15]} 26. Nd5+ {[%clk 0:00:47]} 1-0


[Site "https://www.chess.com"]